fUST/lending_fUST_20250730
["ID","MTS","AMOUNT","RATE_DAILY","PERIOD"]
[376041695,1753834250894,-500.0,0.00021973,2]
[376041696,1753834250903,-500.0,0.00021973,2]
[376041697,1753834250912,-500.0,0.00021973,2]
[376041698,1753834250921,-501.11731388,0.00021973,2]
[376041699,1753834250931,-302.04489196,0.00021973,2]
[376041700,1753834250940,-500.0,0.00021973,2]
[376041701,1753834250949,-500.0,0.00021973,2]
[376041702,1753834250958,-500.0,0.00021973,2]
[376041703,1753834250967,-500.0,0.00021973,2]
[376041704,1753834250977,-500.0,0.00021973,2]
[376041705,1753834250986,-500.0,0.00021973,2]
[376041706,1753834250995,-500.0,0.00021973,2]
[376041707,1753834251004,-208.83618979,0.00021973,2]
[376041708,1753834251014,-547.61489586,0.00021973,2]
[376041709,1753834251023,-500.0,0.00021973,2]
[376041710,1753834251032,-501.47707368,0.00021973,2]
[376041711,1753834251042,-688.1,0.00021984,4]
[376041712,1753834251051,-200.0,0.00021994,2]
[376041713,1753834251061,-202.18302273,0.00021994,2]
[376041714,1753834251070,-242.64135247,0.00021994,2]
[376041715,1753834251079,-200.0,0.00021994,2]
[376041716,1753834251089,-216.14992921,0.00021994,2]
[376041717,1753834251098,-32223.56689803,0.00021995,2]
[376041718,1753834251305,-460.0,0.00019161,2]
[376041719,1753834251316,-4140.0,0.00021995,2]
[376041720,1753834251400,-160.1053548,0.000194,2]
[376041721,1753834251411,-609.08,0.00019435,2]
[376041722,1753834251421,-375.97185692,0.00021995,2]
[376041723,1753834251444,-10140.91952792,0.00021995,2]
[376041724,1753834251456,-66979.42209942,0.00021995,2]
[376041725,1753834251466,-151.0,0.00021995,7]
[376041726,1753834251476,-151.0,0.00021995,7]
[376041727,1753834251485,-435.930306,0.00021995,7]
[376041728,1753834251495,-151.0,0.00021995,7]
[376041729,1753834251505,-11646.21450722,0.00022,2]
[376041730,1753834251514,-1921.03,0.00022,7]
[376041731,1753834251523,-11917.65,0.00022,7]
[376041732,1753834251533,-5300.0,0.00022,2]
[376041733,1753834251542,-168.17756401,0.00022,2]
[376041734,1753834251552,-5174.11,0.00022,2]
[376041735,1753834251561,-190.0,0.00022,2]
[376041736,1753834251570,-560.0,0.00022038,2]
[376041737,1753834251580,-168.17756401,0.00022164,2]
[376041738,1753834251590,-494.91,0.00022174,2]
[376041739,1753834251599,-460.0,0.00022174,2]
[376041740,1753834251609,-465.29,0.00022174,2]
[376041741,1753834251618,-1629.83,0.00022174,2]
[376041742,1753834251629,-1525.58,0.00022174,2]
[376041743,1753834251639,-460.0,0.00022174,2]
[376041744,1753834251648,-582.34,0.00022174,2]
[376041745,1753834251658,-2448.7,0.00022174,2]
[376041746,1753834251667,-1481.89,0.00022174,2]
[376041747,1753834251677,-460.0,0.00022174,2]
[376041748,1753834251687,-1072.47,0.00022174,2]
[376041749,1753834251696,-460.0,0.00022174,2]
[376041750,1753834251706,-460.0,0.00022174,2]
[376041751,1753834251716,-460.0,0.00022175,2]
[376041752,1753834251839,-641.04,0.00022175,2]
[376041753,1753834251850,-518.35,0.00022175,2]
[376041754,1753834251861,-460.0,0.00022175,2]
[376041755,1753834251871,-460.0,0.00022175,2]
[376041756,1753834251882,-1215.6,0.00022175,2]
[376041757,1753834251892,-1028.48,0.00022175,2]
[376041758,1753834251902,-785.59,0.00022175,2]
[376041759,1753834251912,-3619.67,0.00022176,2]
[376041760,1753834251921,-1534.46,0.00022176,2]
[376041761,1753834251931,-590.56,0.00022176,2]
[376041762,1753834251941,-1011.49,0.00022176,2]
[376041763,1753834251951,-1115.69,0.00022176,2]
[376041764,1753834251961,-830.01,0.00022177,2]
[376041765,1753834251971,-869.0,0.0002218,2]
[376041766,1753834251981,-208.310912,0.0002218,7]
[376041767,1753834251991,-190.0,0.00022192,7]
[376041768,1753834252001,-1290.64,0.000222,2]
[376041769,1753834252010,-282.56478394,0.000222,7]
[376041770,1753834252020,-1221.34541957,0.00022203,2]
[376041771,1753834252030,-688.1,0.00022227,5]
[376041772,1753834252039,-168.17756401,0.00022329,2]
[376041773,1753834252049,-435.930306,0.0002236,7]
[376041774,1753834252059,-151.0,0.0002236,7]
[376041775,1753834252068,-185.58995736,0.0002237,2]
[376041776,1753834252078,-4439.47783608,0.0002237,2]
[376041777,1753834252087,-1194.77548466,0.0002237,2]
[376041778,1753834252097,-4562.6211313,0.0002237,2]
[376041779,1753834252107,-157.60649676,0.00022377,2]
[376041780,1753834252117,-2000.0,0.000224,2]
[376041781,1753834252126,-152.281404,0.000224,5]
[376041782,1753834252137,-494.91,0.00022448,2]
[376041783,1753834252147,-460.0,0.00022448,2]
[376041784,1753834252156,-465.29,0.00022448,2]
[376041785,1753834252166,-1629.83,0.00022448,2]
[376041786,1753834252176,-1525.58,0.00022448,2]
[376041787,1753834252187,-460.0,0.00022448,2]
[376041788,1753834252198,-582.34,0.00022448,2]
[376041789,1753834252207,-2448.7,0.00022448,2]
[376041790,1753834252217,-1481.89,0.00022448,2]
[376041791,1753834252227,-460.0,0.00022448,2]
[376041792,1753834252237,-1072.47,0.00022448,2]
[376041793,1753834252247,-460.0,0.00022448,2]
[376041794,1753834252257,-460.0,0.00022448,2]
[376041795,1753834252267,-460.0,0.00022449,2]
[376041796,1753834252277,-641.04,0.00022449,2]
[376041797,1753834252287,-518.35,0.00022449,2]
[376041798,1753834252296,-525.99228321,0.00022449,2]
[376041799,1753834252306,-565.16751401,0.00022449,2]
[376041800,1753834252316,-1215.6,0.00022449,2]
[376041801,1753834252325,-1028.48,0.00022449,2]
[376041802,1753834252334,-785.59,0.00022449,2]
[376041803,1753834252343,-3619.67,0.0002245,2]
[376041804,1753834252353,-1534.46,0.0002245,2]
[376041805,1753834252363,-590.56,0.0002245,2]
[376041806,1753834252373,-1011.49,0.0002245,2]
[376041807,1753834252382,-1115.69,0.0002245,2]
[376041808,1753834252392,-830.01,0.00022451,2]
[376041809,1753834252402,-869.0,0.00022454,2]
[376041810,1753834252412,-37620.38184587,0.0002246,14]
[376041811,1753834252424,-2893.40112092,0.0002246,14]
[376041812,1753834252434,-25310.02536279,0.0002247,2]
[376041813,1753834252709,-460.0,0.00018886,2]
[376041814,1753834252719,-460.0,0.0001916,2]
[376041815,1753834252729,-178.4386705,0.000194,2]
[376041816,1753834252739,-60.6603296,0.00019434,2]
[376041817,1753834277564,152.281404,0.00023,30]
[376041827,1753834531398,1000.0,0.00018163,2]
[376041829,1753834602009,157.60649676,0.00018787,2]
[376041833,1753834728268,157.60649676,0.00018786,2]
[376041834,1753834853540,157.60649676,0.00018786,2]
[376041836,1753834877521,152.894949,0.00023,30]
[376041839,1753835018157,388.705665,0.00013699,2]
[376041841,1753835050549,168.2474739,0.00017955,2]
[376041864,1753835432141,-460.0,0.00018884,2]
[376041866,1753835432151,-460.0,0.00018884,2]
[376041867,1753835432161,-460.0,0.00018884,2]
[376041868,1753835432171,-911.46,0.00018884,2]
[376041870,1753835432181,-300.0,0.00018884,2]
[376041872,1753835432190,-460.0,0.00018884,2]
[376041874,1753835432199,-460.0,0.00018884,2]
[376041876,1753835432209,-460.0,0.00018884,2]
[376041877,1753835432219,-460.0,0.00018884,2]
[376041878,1753835432228,-780.80168607,0.00018885,2]
[376041879,1753835432238,-319.99030485,0.00018885,2]
[376041880,1753835432248,-316.14502267,0.00018885,2]
[376041881,1753835432258,-460.0,0.00018885,2]
[376041882,1753835432268,-460.0,0.00018885,2]
[376041883,1753835432278,-460.0,0.00018885,2]
[376041884,1753835432288,-460.0,0.00018885,2]
[376041885,1753835432297,-460.0,0.00018885,2]
[376041886,1753835432307,-460.0,0.00018885,2]
[376041887,1753835432316,-460.0,0.00018885,2]
[376041888,1753835432326,-460.0,0.00018885,2]
[376041889,1753835432335,-460.0,0.00018885,2]
[376041890,1753835432344,-460.0,0.00018885,2]
[376041891,1753835432354,-460.0,0.00018885,2]
[376041892,1753835432363,-460.0,0.00018885,2]
[376041893,1753835432372,-460.0,0.00018885,2]
[376041894,1753835432382,-1214.61,0.00018885,2]
[376041895,1753835432392,-460.0,0.00018885,2]
[376041896,1753835432402,-460.0,0.00018885,2]
[376041897,1753835432411,-460.0,0.00018885,2]
[376041898,1753835432420,-460.0,0.00018885,2]
[376041899,1753835432431,-460.0,0.00018885,2]
[376041900,1753835432440,-460.0,0.00018885,2]
[376041901,1753835432449,-460.0,0.00018885,2]
[376041902,1753835432459,-545.82,0.00018885,2]
[376041903,1753835432468,-460.0,0.00018885,2]
[376041904,1753835432477,-460.0,0.00018885,2]
[376041905,1753835432487,-1339.71,0.00018885,2]
[376041906,1753835432497,-460.0,0.00018885,2]
[376041907,1753835432508,-460.0,0.00018885,2]
[376041908,1753835432517,-460.0,0.00018885,2]
[376041909,1753835432527,-460.0,0.00018885,2]
[376041910,1753835432536,-460.0,0.00018885,2]
[376041911,1753835432546,-460.0,0.00018885,2]
[376041912,1753835432555,-460.0,0.00018885,2]
[376041913,1753835432564,-460.0,0.00018885,2]
[376041914,1753835432574,-460.0,0.00018885,2]
[376041915,1753835432583,-1273.02,0.00018885,2]
[376041916,1753835432592,-460.0,0.00018885,2]
[376041917,1753835432602,-460.0,0.00018885,2]
[376041918,1753835432611,-256.10802252,0.00018885,2]
[376041919,1753835432620,-460.0,0.00018885,2]
[376041920,1753835432629,-460.0,0.00018885,2]
[376041921,1753835432638,-460.0,0.00018885,2]
[376041922,1753835432648,-460.0,0.00018885,2]
[376041923,1753835432657,-460.0,0.00018885,2]
[376041924,1753835432666,-706.73,0.00018885,2]
[376041925,1753835432675,-2093.66,0.00018885,2]
[376041926,1753835432686,-460.0,0.00018885,2]
[376041927,1753835432695,-460.0,0.00018885,2]
[376041928,1753835432704,-460.0,0.00018885,2]
[376041929,1753835432713,-460.0,0.00018885,2]
[376041930,1753835432722,-460.0,0.00018885,2]
[376041931,1753835432731,-460.0,0.00018885,2]
[376041932,1753835432741,-460.0,0.00018885,2]
[376041933,1753835432750,-460.0,0.00018885,2]
[376041934,1753835432759,-477.05314807,0.00018885,2]
[376041935,1753835432769,-460.0,0.00018885,2]
[376041936,1753835432778,-460.0,0.00018885,2]
[376041937,1753835432789,-460.0,0.00018885,2]
[376041938,1753835432798,-460.0,0.00018885,2]
[376041939,1753835432807,-460.0,0.00018885,2]
[376041940,1753835432817,-1078.68,0.00018885,2]
[376041941,1753835432827,-161.05,0.00018885,2]
[376041942,1753835432836,-460.0,0.00018885,2]
[376041943,1753835432845,-870.69,0.00018885,2]
[376041944,1753835432855,-463.74,0.00018885,2]
[376041945,1753835432865,-460.0,0.00018886,2]
[376041946,1753835432875,-460.0,0.00018886,2]
[376041947,1753835432886,-460.0,0.00018886,2]
[376041948,1753835432895,-460.0,0.00018886,2]
[376041949,1753835432906,-466.54134113,0.00018886,2]
[376041950,1753835432918,-460.0,0.00018886,2]
[376041951,1753835432928,-460.0,0.00018886,2]
[376041952,1753835432937,-460.0,0.00018886,2]
[376041953,1753835432946,-460.0,0.00018886,2]
[376041954,1753835432957,-460.0,0.00018886,2]
[376041955,1753835432967,-460.0,0.00018886,2]
[376041956,1753835432977,-460.0,0.00018886,2]
[376041957,1753835432986,-460.0,0.00018886,2]
[376041958,1753835432996,-460.0,0.00018886,2]
[376041959,1753835433005,-460.0,0.00018886,2]
[376041960,1753835433014,-460.0,0.00018886,2]
[376041961,1753835433024,-460.0,0.00018886,2]
[376041962,1753835433038,-269.02197361,0.00018886,2]
[376041963,1753835433047,-460.0,0.00018886,2]
[376041964,1753835433057,-460.0,0.00018886,2]
[376041965,1753835433069,-553.77471856,0.00018886,2]
[376041966,1753835433080,-460.0,0.00018886,2]
[376041967,1753835433093,-460.0,0.00018886,2]
[376041968,1753835433106,-663.56,0.00018886,2]
[376041969,1753835433117,-460.0,0.00018886,2]
[376041970,1753835433135,-460.0,0.00018886,2]
[376041971,1753835433155,-460.0,0.00018886,2]
[376041972,1753835433165,-3077.01,0.00018886,2]
[376041973,1753835433177,-765.86,0.00018886,2]
[376041974,1753835433190,-1018.36,0.00018886,2]
[376041975,1753835433202,-584.91,0.00018887,2]
[376041976,1753835433214,-460.0,0.00018887,2]
[376041977,1753835433225,-181.59294614,0.00018887,2]
[376041978,1753835433241,-278.40705386,0.00018887,2]
[376041979,1753835433253,-172.59457456,0.00018887,2]
[376041980,1753835433284,-282.04321465,0.00018887,2]
[376041993,1753835438223,-5.36221079,0.00018887,2]
[376041994,1753835438234,-329.73348361,0.00018887,2]
[376041995,1753835438278,-130.26651639,0.00018887,2]
[376041996,1753835438288,-228.7287738,0.00018887,2]
[376041997,1753835438301,-231.2712262,0.00018887,2]
[376041998,1753835438311,-460.0,0.00018887,2]
[376041999,1753835438322,-460.0,0.00018887,2]
[376042000,1753835438332,-460.0,0.00018887,2]
[376042001,1753835438343,-460.0,0.00018887,2]
[376042002,1753835438353,-460.0,0.00018887,2]
[376042003,1753835438363,-460.0,0.00018887,2]
[376042004,1753835438373,-460.0,0.00018887,2]
[376042005,1753835438383,-460.0,0.00018887,2]
[376042006,1753835438394,-554.46401392,0.00018887,2]
[376042007,1753835438404,-226.49065854,0.00018887,2]
[376042008,1753835438418,-233.50934146,0.00018887,2]
[376042009,1753835438428,-460.0,0.00018887,2]
[376042010,1753835438439,-460.0,0.00018887,2]
[376042011,1753835438449,-433.84034297,0.00018887,2]
[376042012,1753835438462,-26.15965703,0.00018887,2]
[376042013,1753835438472,-460.0,0.00018887,2]
[376042014,1753835438483,-499.53902578,0.00018887,2]
[376042015,1753835438493,-460.0,0.00018887,2]
[376042016,1753835438508,-300.70751158,0.00018887,2]
[376042017,1753835438519,-460.0,0.00018887,2]
[376042018,1753835438530,-460.0,0.00018887,2]
[376042019,1753835438540,-460.0,0.00018887,2]
[376042020,1753835438550,-460.0,0.00018887,2]
[376042021,1753835438561,-460.0,0.00018887,2]
[376042022,1753835438573,-460.0,0.00018887,2]
[376042023,1753835438583,-460.0,0.00018887,2]
[376042024,1753835438594,-460.0,0.00018887,2]
[376042025,1753835438604,-460.0,0.00018887,2]
[376042026,1753835438614,-460.0,0.00018887,2]
[376042027,1753835438625,-460.0,0.00018887,2]
[376042028,1753835438635,-460.0,0.00018887,2]
[376042029,1753835438647,-460.0,0.00018887,2]
[376042030,1753835438657,-460.0,0.00018887,2]
[376042031,1753835438668,-165.1847579,0.00018887,2]
[376042032,1753835438679,-500.0,0.00018887,2]
[376042033,1753835438691,-460.0,0.00018887,2]
[376042034,1753835438706,-460.0,0.00018887,2]
[376042035,1753835438716,-463.57125146,0.00018887,2]
[376042036,1753835438727,-460.0,0.00018887,2]
[376042037,1753835438737,-460.0,0.00018887,2]
[376042038,1753835438748,-460.0,0.00018887,2]
[376042039,1753835438758,-460.0,0.00018887,2]
[376042040,1753835438769,-460.0,0.00018887,2]
[376042041,1753835438779,-460.0,0.00018887,2]
[376042042,1753835438789,-460.0,0.00018887,2]
[376042043,1753835438800,-460.0,0.00018887,2]
[376042044,1753835438810,-460.0,0.00018887,2]
[376042045,1753835438820,-460.0,0.00018887,2]
[376042046,1753835438831,-460.0,0.00018887,2]
[376042047,1753835438842,-460.0,0.00018887,2]
[376042048,1753835438853,-460.0,0.00018887,2]
[376042049,1753835438864,-460.0,0.00018888,2]
[376042050,1753835438875,-385.05848143,0.000189,2]
[376042051,1753835438886,-13432.81152834,0.00019015,2]
[376042052,1753835438896,-151.0,0.0001904,2]
[376042053,1753835438907,-160.34218718,0.0001904,2]
[376042054,1753835438917,-25000.0,0.0001904,2]
[376042055,1753835438928,-460.0,0.00019158,2]
[376042056,1753835438940,-460.0,0.00019158,2]
[376042057,1753835438951,-460.0,0.00019158,2]
[376042058,1753835438962,-911.46,0.00019158,2]
[376042059,1753835438972,-460.0,0.00019158,2]
[376042060,1753835438983,-460.0,0.00019159,2]
[376042061,1753835438992,-460.0,0.00019159,2]
[376042062,1753835439002,-460.0,0.00019159,2]
[376042063,1753835439011,-595.02552541,0.00019159,2]
[376042064,1753835439020,-460.0,0.00019159,2]
[376042065,1753835439030,-460.0,0.00019159,2]
[376042066,1753835439040,-1214.61,0.00019159,2]
[376042067,1753835439215,-244.96,0.00019159,2]
[376042068,1753835439232,-381.48584609,0.00019159,2]
[376042069,1753835439244,-460.0,0.00019159,2]
[376042070,1753835439254,-460.0,0.00019159,2]
[376042071,1753835439269,-460.0,0.00019159,2]
[376042072,1753835439279,-545.82,0.00019159,2]
[376042073,1753835439288,-502.56,0.00019159,2]
[376042074,1753835439298,-460.0,0.00019159,2]
[376042075,1753835439307,-460.0,0.00019159,2]
[376042076,1753835439316,-1339.71,0.00019159,2]
[376042077,1753835439326,-460.0,0.00019159,2]
[376042078,1753835439336,-460.0,0.00019159,2]
[376042079,1753835439345,-1273.02,0.00019159,2]
[376042080,1753835439355,-460.0,0.00019159,2]
[376042081,1753835439364,-460.0,0.00019159,2]
[376042082,1753835439373,-460.0,0.00019159,2]
[376042083,1753835439383,-706.73,0.00019159,2]
[376042084,1753835439392,-2093.66,0.00019159,2]
[376042085,1753835439401,-460.0,0.00019159,2]
[376042086,1753835439410,-460.0,0.00019159,2]
[376042087,1753835439419,-460.0,0.00019159,2]
[376042088,1753835439428,-460.0,0.00019159,2]
[376042089,1753835439439,-460.0,0.00019159,2]
[376042090,1753835439448,-460.0,0.00019159,2]
[376042091,1753835439457,-460.0,0.00019159,2]
[376042092,1753835439466,-1078.68,0.00019159,2]
[376042093,1753835439476,-606.35485263,0.00019159,2]
[376042094,1753835439485,-870.69,0.00019159,2]
[376042095,1753835439497,-463.74,0.00019159,2]
[376042096,1753835439507,-460.0,0.0001916,2]
[376042097,1753835439517,-313.81819816,0.0001916,2]
[376042098,1753835439526,-460.0,0.0001916,2]
[376042099,1753835439535,-460.0,0.0001916,2]
[376042100,1753835439545,-460.0,0.0001916,2]
[376042101,1753835439554,-460.0,0.0001916,2]
[376042102,1753835439563,-241.28,0.0001916,2]
[376042104,1753835439573,-460.0,0.0001916,2]
[376042106,1753835439582,-663.56,0.0001916,2]
[376042107,1753835439591,-460.0,0.0001916,2]
[376042108,1753835439600,-460.0,0.0001916,2]
[376042109,1753835439610,-3077.01,0.0001916,2]
[376042110,1753835439619,-765.86,0.0001916,2]
[376042111,1753835439628,-1018.36,0.0001916,2]
[376042112,1753835439637,-460.0,0.00019161,2]
[376042113,1753835439647,-588.86608097,0.00019161,2]
[376042114,1753835439656,-460.0,0.00019161,2]
[376042115,1753835439665,-460.0,0.00019161,2]
[376042116,1753835439674,-460.0,0.00019161,2]
[376042117,1753835439683,-460.0,0.00019161,2]
[376042118,1753835439693,-460.0,0.00019161,2]
[376042119,1753835439702,-460.0,0.00019161,2]
[376042120,1753835439711,-460.0,0.00019161,2]
[376042121,1753835439721,-230.69504017,0.00019161,2]
[376042122,1753835439730,-494.08,0.00019161,2]
[376042123,1753835439740,-460.0,0.00019161,2]
[376042124,1753835439749,-1286.83,0.00019161,2]
[376042125,1753835439759,-460.0,0.00019161,2]
[376042126,1753835439768,-884.99,0.00019161,2]
[376042127,1753835439778,-500.0,0.00019164,2]
[376042129,1753835439787,-160.086287,0.00019178,2]
[376042130,1753835439796,-200.0,0.00019262,15]
[376042131,1753835439806,-200.0,0.00019262,15]
[376042132,1753835439816,-200.0,0.00019262,15]
[376042133,1753835439825,-200.0,0.00019262,15]
[376042134,1753835439835,-319.38,0.00019423,3]
[376042135,1753835439844,-460.0,0.00019432,2]
[376042136,1753835439854,-460.0,0.00019432,2]
[376042137,1753835439863,-911.46,0.00019432,2]
[376042138,1753835439873,-1214.61,0.00019433,2]
[376042139,1753835439882,-460.0,0.00019433,2]
[376042141,1753835439892,-460.0,0.00019433,2]
[376042142,1753835439902,-460.0,0.00019433,2]
[376042143,1753835439912,-545.82,0.00019433,2]
[376042144,1753835439922,-460.0,0.00019433,2]
[376042145,1753835439932,-460.0,0.00019433,2]
[376042146,1753835439942,-1339.71,0.00019433,2]
[376042147,1753835439952,-460.0,0.00019433,2]
[376042148,1753835439961,-1273.02,0.00019433,2]
[376042149,1753835439971,-460.0,0.00019433,2]
[376042150,1753835439980,-460.0,0.00019433,2]
[376042151,1753835439990,-460.0,0.00019433,2]
[376042152,1753835439999,-706.73,0.00019433,2]
[376042153,1753835440009,-2093.66,0.00019433,2]
[376042154,1753835440019,-460.0,0.00019433,2]
[376042155,1753835440028,-460.0,0.00019433,2]
[376042156,1753835440038,-460.0,0.00019433,2]
[376042157,1753835440048,-460.0,0.00019433,2]
[376042158,1753835440057,-1078.68,0.00019433,2]
[376042159,1753835440067,-870.69,0.00019433,2]
[376042160,1753835440076,-463.74,0.00019433,2]
[376042161,1753835440086,-460.0,0.00019434,2]
[376042162,1753835440095,-460.0,0.00019434,2]
[376042163,1753835440104,-460.0,0.00019434,2]
[376042164,1753835440113,-460.0,0.00019434,2]
[376042165,1753835440123,-460.0,0.00019434,2]
[376042166,1753835440135,-663.56,0.00019434,2]
[376042167,1753835440151,-460.0,0.00019434,2]
[376042168,1753835440161,-460.0,0.00019434,2]
[376042169,1753835440171,-3077.01,0.00019434,2]
[376042170,1753835440180,-765.86,0.00019434,2]
[376042171,1753835440194,-1018.36,0.00019434,2]
[376042172,1753835440203,-460.0,0.00019435,2]
[376042173,1753835440213,-515.15,0.00019435,2]
[376042174,1753835440223,-494.08,0.00019435,2]
[376042175,1753835440232,-1286.83,0.00019435,2]
[376042176,1753835440242,-460.0,0.00019435,2]
[376042177,1753835440251,-884.99,0.00019435,2]
[376042178,1753835440261,-500.0,0.00019472,2]
[376042179,1753835440271,-500.0,0.00019472,2]
[376042180,1753835440281,-500.0,0.00019472,2]
[376042181,1753835440292,-500.0,0.00019472,2]
[376042182,1753835440302,-500.0,0.00019472,2]
[376042183,1753835440313,-500.0,0.00019542,2]
[376042184,1753835440324,-500.0,0.00019577,2]
[376042185,1753835440333,-500.98008625,0.00019577,2]
[376042186,1753835440343,-500.0,0.00019589,2]
[376042187,1753835440353,-500.0,0.00019589,2]
[376042188,1753835440362,-226.31746285,0.00019589,2]
[376042189,1753835440372,-500.0,0.00019589,2]
[376042190,1753835440382,-500.0,0.00019589,2]
[376042191,1753835440391,-500.0,0.00019589,2]
[376042192,1753835440401,-500.0,0.00019589,2]
[376042193,1753835440410,-500.0,0.00019589,2]
[376042194,1753835440420,-504.61106702,0.00019606,2]
[376042195,1753835440429,-538.29265447,0.00019606,2]
[376042196,1753835440441,-500.0,0.00019606,2]
[376042197,1753835440450,-497.86177951,0.00019606,2]
[376042198,1753835440459,-500.66691091,0.00019606,2]
[376042199,1753835440468,-900.86280639,0.0001961,2]
[376042200,1753835440477,-323.14906171,0.00019626,2]
[376042201,1753835440487,-500.0,0.00019626,2]
[376042202,1753835440498,-160.0,0.00019656,2]
[376042203,1753835440510,-911.46,0.00019706,2]
[376042204,1753835440520,-1214.61,0.00019707,2]
[376042205,1753835440529,-433.58996103,0.00019707,2]
[376042206,1753835440538,-460.0,0.00019707,2]
[376042207,1753835440549,-545.82,0.00019707,2]
[376042208,1753835440558,-1339.71,0.00019707,2]
[376042209,1753835440568,-460.0,0.00019707,2]
[376042210,1753835440579,-1273.02,0.00019707,2]
[376042211,1753835440588,-460.0,0.00019707,2]
[376042212,1753835440597,-460.0,0.00019707,2]
[376042213,1753835440607,-460.0,0.00019707,2]
[376042214,1753835440616,-706.73,0.00019707,2]
[376042215,1753835440625,-2093.66,0.00019707,2]
[376042216,1753835440634,-460.0,0.00019707,2]
[376042217,1753835440644,-460.0,0.00019707,2]
[376042218,1753835440654,-460.0,0.00019707,2]
[376042219,1753835440663,-460.0,0.00019707,2]
[376042220,1753835440673,-1078.68,0.00019707,2]
[376042221,1753835440682,-870.69,0.00019707,2]
[376042222,1753835440693,-463.74,0.00019707,2]
[376042223,1753835440702,-460.0,0.00019708,2]
[376042224,1753835440711,-460.0,0.00019708,2]
[376042225,1753835440721,-459.05681226,0.00019708,2]
[376042226,1753835440731,-460.0,0.00019708,2]
[376042227,1753835440740,-460.0,0.00019708,2]
[376042228,1753835440749,-663.56,0.00019708,2]
[376042229,1753835440759,-460.0,0.00019708,2]
[376042230,1753835440768,-460.0,0.00019708,2]
[376042231,1753835440778,-3077.01,0.00019708,2]
[376042232,1753835440787,-765.86,0.00019708,2]
[376042233,1753835440797,-1018.36,0.00019708,2]
[376042234,1753835440806,-205.12,0.00019709,2]
[376042235,1753835440815,-494.08,0.00019709,2]
[376042236,1753835440826,-1286.83,0.00019709,2]
[376042237,1753835440835,-884.99,0.00019709,2]
[376042238,1753835440845,-160.0,0.0001974,2]
[376042239,1753835440854,-526.67226028,0.0001974,2]
[376042240,1753835440864,-214.91980558,0.0001974,2]
[376042241,1753835440873,-216.1031716,0.0001974,2]
[376042242,1753835440882,-841.06558547,0.0001974,2]
[376042243,1753835440892,-160.0,0.0001974,2]
[376042244,1753835440901,-12637.12721421,0.0001974,2]
[376042245,1753835440910,-460.5085953,0.0001974,2]
[376042246,1753835440920,-231.39372452,0.0001974,2]
[376042247,1753835440929,-160.0,0.0001974,2]
[376042248,1753835440940,-694.0,0.00019825,3]
[376042249,1753835440949,-340.1484376,0.00019878,2]
[376042250,1753835440959,-911.46,0.0001998,2]
[376042251,1753835440968,-1214.61,0.00019981,2]
[376042252,1753835440978,-460.0,0.00019981,2]
[376042253,1753835440987,-545.82,0.00019981,2]
[376042254,1753835440997,-1339.71,0.00019981,2]